[Event "CCT Final-RR 2024"]
[Site "Oslo"]
[Date "2024.12.17"]
[Round "2"]
[White "Nepomniachtchi, Ian"]
[Black "Carlsen, Magnus"]
[Result "1/2-1/2"]
[ECO "C50"]
[WhiteElo "2755"]
[BlackElo "2831"]
[Annotator "TA"]
[PlyCount "92"]
[EventDate "2024.12.11"]
[EventType "tourn"]
[EventCountry "NOR"]
[SourceTitle "playchess.com"]
[Source "ChessBase"]
[SourceQuality "1"]
[TimeControl "600+2"]

{[%evp 13,92,0,3,-6,0,17,26,26,42,37,33,37,39,24,41,34,31,35,56,58,46,48,47,54,61,15,23,22,66,51,87,77,81,31,33,0,0,0,0,0,0,0,0,0,0,-18,-31,-16,-5,-8,-12,-9,-8,-19,-16,-20,23,33,33,32,27,46,60,0,0,0,0,0,0,0,0,0,0,0,0,0,0,0,0,0,0]} 1. e4 {[%emt 0:00:02]} e5 {[%emt 0:00:01]} 2. Nf3 {[%emt 0:00:01]} Nc6 {[%emt 0:00:02]} 3. Bc4 {[%emt 0:00:01]} Bc5 {[%emt 0:00:03]} 4. d3 {[%emt 0:00:01]} Nf6 {[%emt 0:00:02]} 5. Nc3 {[%emt 0:00:02]} h6 {[%emt 0:01:06]} 6. Be3 {[%emt 0:00:03]} Bb6 {[%emt 0:00:02]} 7. Bxb6 {[%emt 0:00:02]} axb6 {[%emt 0:00:01]} 8. d4 {[%emt 0:00:00]} exd4 {[%emt 0:00:12]} 9. Nxd4 {[%emt 0:00:02]} O-O {[%emt 0:00:19][%cal Of6e4]} 10. Ndb5 {[%emt 0:00:01]} Re8 {[%emt 0:00:31][%cal Oc6a5]} 11. O-O {[%emt 0:00:02]} d6 {[%emt 0:00:01]} 12. Re1 {[%emt 0:00:02]} Ne5 {[%emt 0:00:24]} 13. Bf1 {[%emt 0:00:02]} Bd7 {[%emt 0:00:05]} 14. Qd2 {[%emt 0:00:53]} Ng6 {[%emt 0:01:38]} 15. a4 {[%emt 0:00:31]} Bxb5 {[%emt 0:00:09]} 16. Bxb5 {[%emt 0:00:04]} c6 {[%emt 0:00:01]} 17. Bf1 {[%emt 0:00:15]} Qc7 {[%emt 0:00:51]} 18. Rad1 {[%emt 0:00:17]} Rad8 {[%emt 0:00:03]} 19. f4 {[%emt 0:00:03]} (19. g3 $14) 19... Nf8 {[%emt 0:01:18]} 20. g3 {[%emt 0:00:21]} Ne6 {[%emt 0:00:02]} 21. Bg2 {[%emt 0:00:05]} b5 {[%emt 0:00:44]} 22. axb5 {[%emt 0:00:07]} cxb5 {[%emt 0:00:01]} 23. h3 {[%emt 0:00:25]} (23. Bf3 $16) 23... b4 $14 {[%emt 0:00:08]} 24. Nd5 {[%emt 0:00:44]} Nxd5 {[%emt 0:00:02]} 25. exd5 {[%emt 0:00:00]} Qb6+ {[%emt 0:00:07]} 26. Kh2 {[%emt 0:00:01]} Nc5 {[%emt 0:00:02][%cal Be6c5,Bc5d7,Bd7f6,Bf6e4][%mdl 32]} 27. b3 {[%emt 0:00:01]} Nd7 {[%emt 0:00:10]} 28. g4 {[%emt 0:00:34]} Qc5 {[%emt 0:00:04]} 29. Re2 {[%emt 0:00:40]} Rxe2 {[%emt 0:00:12]} 30. Qxe2 {[%emt 0:00:01]} Nf6 {[%emt 0:00:11]} 31. Qc4 {[%emt 0:00:36]} Qxc4 {[%emt 0:00:28]} 32. bxc4 $11 {[%emt 0:00:01][%mdl 4096] Endgame KRB-KRN} Rc8 {[%emt 0:00:01]} 33. Bf1 {[%emt 0:00:28]} Ne4 {[%emt 0:00:02]} 34. Kg2 {[%emt 0:00:40]} Kf8 {[%emt 0:00:08]} 35. Rb1 {[%emt 0:00:08]} Nc5 {[%emt 0:00:16]} 36. Rxb4 {[%emt 0:00:03]} Ra8 {[%emt 0:00:00]} 37. Bd3 {[%emt 0:00:21]} Ra3 {[%emt 0:00:02]} 38. g5 {[%emt 0:00:16]} (38. Rb6 $14) 38... hxg5 {[%emt 0:00:04]} 39. fxg5 {[%emt 0:00:01]} g6 {[%emt 0:00:01]} 40. h4 {[%emt 0:00:06]} Ra1 {[%emt 0:00:06]} 41. Rb2 {[%emt 0:00:40]} Ke7 {[%emt 0:00:06]} 42. Be2 {[%emt 0:00:03]} Re1 {[%emt 0:00:05]} 43. Kf2 {[%emt 0:00:11]} Rh1 {[%emt 0:00:02]} 44. Kg3 {[%emt 0:00:01]} Re1 {[%emt 0:00:09]} 45. Kf2 {[%emt 0:00:02]} Rh1 {[%emt 0:00:01]} 46. Kg3 {[%emt 0:00:01]} Re1 {[%emt 0:00:05]} 1/2-1/2

[Event "CCT Final-RR 2024"]
[Site "Oslo"]
[Date "2024.12.17"]
[Round "2"]
[White "Aronian, Levon"]
[Black "Vachier-Lagrave, Maxime"]
[Result "0-1"]
[ECO "B52"]
[WhiteElo "2747"]
[BlackElo "2731"]
[Annotator "TA"]
[PlyCount "116"]
[EventDate "2024.12.11"]
[EventType "tourn"]
[EventCountry "NOR"]
[SourceTitle "playchess.com"]
[Source "ChessBase"]
[SourceQuality "1"]
[TimeControl "600+2"]

{[%evp 54,116,-11,0,-6,-10,-16,-30,-23,-41,-22,-71,-73,-124,-116,-223,-214,-228,-203,-207,-132,-113,-126,-112,-131,-160,-156,-147,-59,-95,-86,-68,-80,-92,-89,-470,-493,-547,-545,-555,-529,-512,-537,-928,-862,-928,-903,-2193,-619,-683,-722,-732,-718,-12815,-12810,-29945,-466,-12847,-29941,-12823,-8646,-29960,-29958,-29972,-5624]} 1. e4 {[%emt 0:00:01]} c5 {[%emt 0:00:01]} 2. Nf3 {[%emt 0:00:01]} d6 {[%emt 0:00:01]} 3. Bb5+ {[%emt 0:00:01]} Bd7 {[%emt 0:00:02]} 4. Bxd7+ {[%emt 0:00:01]} Qxd7 {[%emt 0:00:01]} 5. O-O {[%emt 0:00:03]} Nc6 {[%emt 0:00:02]} 6. c3 {[%emt 0:00:01]} d5 {[%emt 0:00:02]} 7. e5 {[%emt 0:00:15]} e6 {[%emt 0:00:33]} 8. d4 {[%emt 0:00:01]} Nge7 {[%emt 0:00:01]} 9. dxc5 {[%emt 0:00:25]} Ng6 {[%emt 0:00:02]} 10. Re1 {[%emt 0:00:59]} Bxc5 {[%emt 0:00:02]} 11. Nbd2 {[%emt 0:00:01]} O-O {[%emt 0:00:27]} 12. Nb3 {[%emt 0:00:02]} Bb6 {[%emt 0:00:02]} 13. Be3 {[%emt 0:00:07]} Qc7 {[%emt 0:00:28]} 14. Bxb6 {[%emt 0:00:02]} Qxb6 {[%emt 0:00:01]} 15. Qd2 {[%emt 0:00:27]} f6 {[%emt 0:00:10]} 16. exf6 {[%emt 0:00:18]} Rxf6 {[%emt 0:00:01]} 17. Nbd4 {[%emt 0:00:55]} Re8 {[%emt 0:01:05]} 18. Re3 {[%emt 0:00:50]} e5 {[%emt 0:00:19]} 19. Ne2 {[%emt 0:00:53]} Rd8 {[%emt 0:00:15]} 20. h3 {[%emt 0:00:54]} e4 {[%emt 0:00:14]} 21. Nh2 {[%emt 0:00:21]} Nce5 {[%emt 0:00:28]} 22. b3 {[%emt 0:01:10]} Nd3 {[%emt 0:00:10]} 23. Rf1 {[%emt 0:01:46]} Rdf8 {[%emt 0:01:39]} 24. Ng4 {[%emt 0:00:09]} R6f7 {[%emt 0:00:20]} 25. Rxd3 {[%emt 0:00:01]} exd3 {[%emt 0:00:01]} 26. Qxd3 {[%emt 0:00:01]} Rd8 {[%emt 0:00:44]} 27. Rd1 {[%emt 0:00:41]} Nf4 {[%emt 0:00:54]} ({Black should try} 27... Ne5 $15 28. Qe3 (28. Nxe5 $2 Qxf2+ 29. Kh2 Re7 $19) 28... Nxg4 29. Qxb6 axb6) 28. Nxf4 $11 {[%emt 0:00:03]} Rxf4 {[%emt 0:00:01]} 29. Ne3 {[%emt 0:00:15]} Kh8 {[%emt 0:00:03]} 30. Rd2 {[%emt 0:00:03]} Qe6 {[%emt 0:00:14]} 31. Nc2 {[%emt 0:00:08]} Re4 {[%emt 0:00:13]} 32. c4 {[%emt 0:00:06]} (32. a4 $11 {was preferable.}) 32... d4 $17 {[%emt 0:00:10]} 33. Ne3 {[%emt 0:00:03]} ({White should try} 33. Kh1) 33... Qe5 {[%emt 0:00:23]} 34. Nf1 {[%emt 0:00:02]} (34. g3 $17) 34... Re1 $19 {[%emt 0:00:03]} 35. g3 {[%emt 0:00:02]} h6 {[%emt 0:00:06]} 36. Kg2 {[%emt 0:00:01]} Qe4+ {[%emt 0:00:11]} 37. Qxe4 {[%emt 0:00:01]} Rxe4 {[%emt 0:00:01]} 38. Ne3 {[%emt 0:00:00]} Rde8 {[%emt 0:00:25]} 39. Nf5 {[%emt 0:00:01]} Re2 {[%emt 0:00:06]} 40. Rxd4 {[%emt 0:00:01]} Rxa2 {[%emt 0:00:03]} (40... Rf8 $1 $17 {[%cal Rf8f5]} 41. g4 Rxa2 (41... g6 $2 42. Nxh6 Rfxf2+ 43. Kg3 $19)) 41. Rd7 {[%emt 0:00:06]} Ree2 {[%emt 0:00:03]} 42. g4 {[%emt 0:00:04]} Rxf2+ {[%emt 0:00:02]} 43. Kg3 {[%emt 0:00:00]} Rfb2 {[%emt 0:00:27]} 44. Nxg7 $2 {[%emt 0:00:03][%mdl 8192]} (44. Rxb7 $17 {nothing else works.} Ra3 45. Nd4) 44... Rxb3+ $19 {[%emt 0:00:01]} 45. Kh4 {[%emt 0:00:01]} Rh2 {[%emt 0:00:09]} 46. Kh5 {[%emt 0:00:01]} Rhxh3+ {[%emt 0:00:01]} 47. Kg6 {[%emt 0:00:00] [#]} Rb6+ $1 {[%emt 0:00:01]} (47... Rhd3 48. Re7 Rd8 49. Kxh6 $17) 48. Kf7 {[%emt 0:00:01]} Rf3+ {[%emt 0:00:06]} 49. Nf5 {[%emt 0:00:03]} h5 {[%emt 0:00:04]} 50. Rd1 {[%emt 0:00:06]} Rf4 {[%emt 0:00:15]} (50... hxg4 $142 51. Rh1+ Rh3) 51. Rh1 {[%emt 0:00:02]} Rh6 $1 {[%emt 0:00:01]} (51... Rxg4 52. Rxh5+) 52. Ke7 {[%emt 0:00:03]} Rh7+ {[%emt 0:00:03]} 53. Kf6 {[%emt 0:00:01]} hxg4 {[%emt 0:00:01]} 54. Rd1 {[%emt 0:00:01]} Rc7 {[%emt 0:00:08]} ({Not} 54... Rxc4 55. Rd8#) (54... Rg7 $142 55. Ke5 Rxc4 56. Nxg7 Kxg7 57. Rg1 Kg6 58. Kd6 a5 59. Rg3 Rc6+ 60. Kd5 Kg5 61. Rb3 Ra6 62. Rxb7 g3 63. Rb2 Rg6 64. Ke4 Kh4 (64... Kg4 $2 65. Ke5 $19) 65. Kf4 g2 (65... Rf6+ $2 66. Ke3 $19) 66. Rb8 Rg4+ (66... g1=B 67. Rh8+) 67. Kf3 g1=Q (67... g1=B 68. Rh8+ Kg5 69. Rg8+ Kf6 70. Rxg4 $11) 68. Rh8+ Kg5 69. Rg8+ Kf5 70. Rf8+ Ke6 71. Re8+ Kf7 72. Rh8 Qg2+ 73. Ke3 Re4+ (73... Qe4+ {is a self mate.} 74. Kd2 Rg2+ 75. Kc3 Rc2+ 76. Kb3 Qc4+ 77. Ka3 Qb4#) 74. Kd3 Qf3+ 75. Kd2 Re2+ 76. Kd1 Qf1#) 55. Kg5 {[%emt 0:00:04]} (55. Kg6 $142 Rc6+ (55... Rcxc4 56. Rd8#) 56. Kg5 Rcxc4 57. Rd8+ Kh7 58. Rd7+ Kg8 59. Rxb7) 55... Rxf5+ $19 {[%emt 0:00:02]} 56. Kxf5 {[%emt 0:00:00]} g3 {[%emt 0:00:06]} (56... Rxc4 57. Kg6 Rc6+ 58. Kf5 $19) 57. Rd8+ {[%emt 0:00:05]} Kh7 {[%emt 0:00:01]} 58. Rd1 {[%emt 0:00:02]} g2 {[%emt 0:00:02]} (58... Rxc4 $2 59. Rd3 $19) 0-1

[Event "CCT Final-RR 2024"]
[Site "Oslo"]
[Date "2024.12.17"]
[Round "2"]
[White "So, Wesley"]
[Black "Firouzja, Alireza"]
[Result "1-0"]
[ECO "A55"]
[WhiteElo "2747"]
[BlackElo "2763"]
[Annotator "TA"]
[PlyCount "67"]
[EventDate "2024.12.11"]
[EventType "tourn"]
[EventCountry "NOR"]
[SourceTitle "playchess.com"]
[Source "ChessBase"]
[SourceQuality "1"]
[TimeControl "600+2"]

{[%evp 14,67,64,67,72,49,56,43,43,37,33,39,77,68,77,74,89,81,73,74,95,20,88,85,236,247,322,279,350,327,367,344,437,309,507,483,489,505,498,510,652,669,862,592,827,808,645,520,755,772,778,783,792,765,863,877]} 1. d4 {[%emt 0:00:02]} c6 {[%emt 0:00:00]} 2. c4 {[%emt 0:00:48]} d6 {[%emt 0:00:01]} 3. Nf3 {[%emt 0:00:15]} Nf6 {[%emt 0:00:04]} 4. Nc3 {[%emt 0:00:03]} Qc7 {[%emt 0:00:13]} 5. e4 {[%emt 0:00:17]} e5 {[%emt 0:00:00]} 6. Be2 {[%emt 0:00:02]} Be7 {[%emt 0:00:03]} 7. O-O {[%emt 0:00:03]} Nbd7 {[%emt 0:00:02][%cal Bb8d7,Bd7f8,Bf8g6][%mdl 32]} 8. Qc2 {[%emt 0:00:26]} Nf8 {[%emt 0:00:05]} 9. Rd1 {[%emt 0:00:12]} Ng6 {[%emt 0:00:03]} 10. b4 {[%emt 0:00:16]} O-O {[%emt 0:00:07]} 11. h3 {[%emt 0:00:21]} a5 {[%emt 0:00:46]} 12. b5 {[%emt 0:00:06]} Nd7 {[%emt 0:00:05]} 13. Rb1 {[%emt 0:00:31]} exd4 {[%emt 0:00:17]} 14. Nxd4 {[%emt 0:00:03]} Nc5 {[%emt 0:00:03]} 15. Be3 {[%emt 0:00:24]} Bf6 {[%emt 0:00:45]} 16. Nf5 {[%emt 0:00:44]} Be5 {[%emt 0:00:27][%cal Oc5e4]} 17. g3 {[%emt 0:00:31] White is more active.} (17. Bf3 $16) 17... Re8 {[%emt 0:01:46]} (17... Nxe4 $1 $11 18. Qxe4 Bxf5 19. Qxf5 Bxc3) 18. Bf3 $16 {[%emt 0:00:35]} f6 $2 {[%emt 0:02:11]} ({Don't blunder} 18... Bxc3 $2 19. b6 (19. Qxc3 Bxf5 20. exf5 Ne5 $16) 19... Qb8 20. Nxd6 $18 (20. Qxc3 Ne5 $16)) (18... Bxf5 $16 19. exf5 Nf8 20. bxc6 bxc6) 19. Ne2 $18 {[%emt 0:00:29]} Be6 {[%emt 0:00:18]} 20. bxc6 {[%emt 0:00:49]} Qxc6 {[%emt 0:00:14]} 21. Bg2 {[%emt 0:00:18]} Na4 {[%emt 0:01:28]} 22. Rdc1 {[%emt 0:00:19]} Rec8 {[%emt 0:00:34]} 23. f4 {[%emt 0:00:18]} Bb2 $2 {[%emt 0:00:27]} (23... Bxc4 {might work better.} 24. h4 (24. fxe5 dxe5 25. h4 b5 $18) 24... Qd7 25. fxe5 Nxe5) 24. Rxb2 {[%emt 0:00:09]} Nxb2 {[%emt 0:00:01]} 25. Qxb2 {[%emt 0:00:01]} Qd7 {[%emt 0:00:00]} 26. Rd1 {[%emt 0:00:14]} Qa4 {[%emt 0:00:28]} 27. Rxd6 {[%emt 0:00:14]} Qxc4 {[%emt 0:00:01]} 28. Ned4 {[%emt 0:00:59]} Qxa2 {[%emt 0:00:07]} 29. Qxb7 {[%emt 0:00:01][%csl Gf5][%cal Rb7g7]} Bf7 {[%emt 0:00:03]} 30. Nc6 {[%emt 0:00:07]} Re8 {[%emt 0:00:05] [#]} 31. e5 $1 {[%emt 0:00:24][%cal Og2d5] Strongly threatening Bd5!.} Qb3 {[%emt 0:00:04]} 32. Qxb3 {[%emt 0:00:15]} Bxb3 {[%emt 0:00:01]} 33. Ncd4 {[%emt 0:00:02]} Ba2 {[%emt 0:00:07]} 34. Bxa8 {[%emt 0:00:07]} 1-0

[Event "CCT Final-RR 2024"]
[Site "Oslo"]
[Date "2024.12.17"]
[Round "2"]
[White "Keymer, Vincent"]
[Black "Lazavik, Denis"]
[Result "1/2-1/2"]
[ECO "A07"]
[WhiteElo "2733"]
[BlackElo "2578"]
[Annotator "TA"]
[PlyCount "88"]
[EventDate "2024.12.11"]
[EventType "tourn"]
[EventCountry "NOR"]
[SourceTitle "playchess.com"]
[Source "ChessBase"]
[SourceQuality "1"]
[TimeControl "600+2"]

{[%evp 11,88,-14,12,1,12,2,11,-3,5,-2,4,0,0,0,3,10,7,11,15,0,0,0,2,0,15,22,12,12,3,0,0,-10,-9,-17,0,-22,19,0,18,12,17,11,13,18,14,0,0,0,0,-34,-30,-32,-32,-20,-26,-20,-18,-21,-14,-15,-14,-72,-57,-53,0,-52,0,0,0,0,0,-4,0,0,0,0,0,0,0]} 1. Nf3 {[%emt 0:00:02]} d5 {[%emt 0:00:01]} 2. g3 {[%emt 0:00:01]} Nf6 {[%emt 0:00:01]} 3. Bg2 {[%emt 0:00:01]} e6 {[%emt 0:00:01]} 4. O-O {[%emt 0:00:02]} Be7 {[%emt 0:00:01]} 5. d3 {[%emt 0:00:01]} O-O {[%emt 0:00:03]} 6. Nbd2 {[%emt 0:00:01]} Nc6 {[%emt 0:00:01]} 7. d4 {[%emt 0:00:01]} a5 {[%emt 0:00:17]} 8. c3 {[%emt 0:00:02]} b6 {[%emt 0:00:05]} 9. Qc2 {[%emt 0:00:02]} Bb7 {[%emt 0:00:40]} 10. e4 {[%emt 0:00:02]} dxe4 {[%emt 0:00:03]} 11. Nxe4 {[%emt 0:00:01]} Nxe4 {[%emt 0:00:04]} 12. Qxe4 {[%emt 0:00:01]} a4 {[%emt 0:00:01]} 13. Re1 {[%emt 0:00:05]} Na5 {[%emt 0:00:08]} 14. Qe2 {[%emt 0:00:06]} h6 {[%emt 0:00:12]} 15. Bf4 {[%emt 0:00:32]} Bd6 {[%emt 0:00:28]} 16. Be3 {[%emt 0:00:47]} Bd5 {[%emt 0:00:20]} 17. Nd2 {[%emt 0:00:39]} Be7 {[%emt 0:00:13]} 18. Qg4 {[%emt 0:00:20]} Kh7 {[%emt 0:00:23]} 19. Qh5 {[%emt 0:00:55]} Bxg2 {[%emt 0:00:21]} 20. Kxg2 {[%emt 0:00:02]} c6 {[%emt 0:00:10]} 21. Kg1 {[%emt 0:00:22]} Qd5 {[%emt 0:00:15]} 22. Qd1 {[%emt 0:00:02]} b5 {[%emt 0:00:02]} 23. Bf4 {[%emt 0:00:02]} Qd7 {[%emt 0:00:43]} 24. Qg4 {[%emt 0:00:27]} (24. Rb1 {simplifies} g5 25. Be3 f5 26. Nf3) 24... Bd6 {[%emt 0:01:52]} (24... g5 $5 25. Be3 f5 $11) 25. Bxd6 {[%emt 0:00:18]} Qxd6 {[%emt 0:00:01]} 26. Re5 {[%emt 0:00:15]} Rad8 {[%emt 0:00:11]} 27. Rae1 {[%emt 0:00:17]} Qc7 {[%emt 0:00:11]} 28. Qh4 {[%emt 0:01:00]} Rd5 {[%emt 0:00:13]} 29. g4 {[%emt 0:00:25]} Kg8 {[%emt 0:00:33]} 30. Qg3 {[%emt 0:00:41]} Nc4 {[%emt 0:00:20]} 31. Nxc4 {[%emt 0:01:02]} bxc4 {[%emt 0:00:01]} 32. h4 {[%emt 0:01:15]} Rb8 {[%emt 0:00:15]} 33. R1e2 {[%emt 0:00:01]} Rbb5 {[%emt 0:01:09]} 34. g5 {[%emt 0:00:25]} hxg5 {[%emt 0:00:15]} (34... Rxe5 {keeps more tension.} 35. Rxe5 hxg5 36. hxg5 Rxb2 37. g6 fxg6 38. Qxg6 Qf7) 35. hxg5 {[%emt 0:00:01]} Rxe5 {[%emt 0:00:01]} 36. dxe5 $11 {[%emt 0:00:09][%mdl 4096] Endgame KQR-KQR} (36. Rxe5 $11 Rxb2 37. g6) 36... Qd8 $17 {[%emt 0:00:06]} 37. Kg2 $1 {[%emt 0:00:17]} Qd3 {[%emt 0:00:19]} (37... Qd5+ $15 38. Qf3 Kh7 39. Qxd5 cxd5) 38. Qg4 {[%emt 0:00:12]} ({White should play} 38. Qf3 $11) 38... g6 {[%emt 0:00:32]} ({Black should try} 38... Qd5+ $1 $15 39. Qe4 a3 (39... Qxe4+ 40. Rxe4 Rxb2 41. g6 $15) 40. bxa3 Ra5) 39. a3 $11 {[%emt 0:00:01]} Kf8 {[%emt 0:00:17]} 40. Qe4 {[%emt 0:00:14]} Qd5 {[%emt 0:00:22]} 41. Kg3 {[%emt 0:00:04]} Qd3+ {[%emt 0:00:06]} 42. Kg2 {[%emt 0:00:06]} Qd5 {[%emt 0:00:02]} 43. Kg3 {[%emt 0:00:03]} Qd3+ {[%emt 0:00:01]} 44. Kg2 {[%emt 0:00:03]} Qd5 {[%emt 0:00:02]} 1/2-1/2

[Event "CCT Final-RR 2024"]
[Site "Oslo"]
[Date "2024.12.17"]
[Round "2"]
[White "Vachier-Lagrave, Maxime"]
[Black "Aronian, Levon"]
[Result "1-0"]
[ECO "B90"]
[WhiteElo "2731"]
[BlackElo "2747"]
[Annotator "TA"]
[PlyCount "101"]
[EventDate "2024.12.11"]
[EventType "tourn"]
[EventCountry "NOR"]
[SourceTitle "playchess.com"]
[Source "ChessBase"]
[SourceQuality "1"]
[TimeControl "600+2"]

{[%evp 20,101,60,27,29,25,27,16,20,27,27,38,27,27,22,27,22,16,129,141,106,24,24,19,20,16,12,11,26,18,16,14,85,78,102,121,117,116,117,110,120,118,140,125,122,0,0,0,0,0,213,0,122,73,120,102,199,182,322,318,351,367,365,359,407,388,403,397,410,386,456,486,580,531,516,494,2827,2827,2827,1833,915,458,450,443]} 1. e4 {[%emt 0:00:01]} c5 {[%emt 0:00:02]} 2. Nf3 {[%emt 0:00:02]} d6 {[%emt 0:00:01]} 3. d4 {[%emt 0:00:00]} cxd4 {[%emt 0:00:01]} 4. Nxd4 {[%emt 0:00:01]} Nf6 {[%emt 0:00:01]} 5. Nc3 {[%emt 0:00:01]} a6 {[%emt 0:00:01]} 6. h3 {[%emt 0:00:01]} g6 {[%emt 0:00:48]} 7. g4 {[%emt 0:00:14]} h6 {[%emt 0:00:10]} 8. Bg2 {[%emt 0:00:14]} Bg7 {[%emt 0:00:41]} 9. O-O {[%emt 0:00:11]} O-O {[%emt 0:00:26]} 10. Be3 {[%emt 0:00:07]} Nc6 {[%emt 0:00:08]} 11. Qd2 {[%emt 0:01:00]} h5 {[%emt 0:00:09]} 12. g5 {[%emt 0:00:06]} Nd7 {[%emt 0:00:01]} 13. f4 {[%emt 0:00:28]} Nxd4 {[%emt 0:01:12]} 14. Bxd4 {[%emt 0:00:01]} Bxd4+ {[%emt 0:00:01]} 15. Qxd4 {[%emt 0:00:01]} b5 {[%emt 0:00:11]} 16. e5 {[%emt 0:00:20]} dxe5 {[%emt 0:00:02]} 17. fxe5 {[%emt 0:00:01]} Rb8 {[%emt 0:00:01]} 18. Rad1 {[%emt 0:02:04]} Qc7 {[%emt 0:00:14]} (18... Qb6 $11) 19. Nd5 $16 {[%emt 0:00:13]} Qxe5 {[%emt 0:00:01]} 20. Qxe5 {[%emt 0:00:05]} (20. Qf2 $16) 20... Nxe5 $11 {[%emt 0:00:02]} 21. Nxe7+ {[%emt 0:00:03]} Kg7 {[%emt 0:00:02]} 22. Rfe1 {[%emt 0:00:21]} Nc4 $1 {[%emt 0:00:01]} 23. b3 {[%emt 0:00:01]} Na3 {[%emt 0:00:08]} 24. c3 {[%emt 0:00:01]} Be6 {[%emt 0:00:51]} 25. Nc6 {[%emt 0:00:28]} Rb6 {[%emt 0:01:25]} (25... Rbc8 $11) 26. Nd4 $16 {[%emt 0:00:03]} Rc8 {[%emt 0:01:19]} 27. Nxe6+ {[%emt 0:01:04]} Rxe6 {[%emt 0:00:01]} 28. Rxe6 {[%emt 0:00:01]} fxe6 {[%emt 0:00:00]} 29. Rd7+ {[%emt 0:00:02]} Kf8 {[%emt 0:00:01]} 30. Rd6 {[%emt 0:00:00]} Ke7 {[%emt 0:00:39]} 31. Rxa6 {[%emt 0:00:02]} Nb1 {[%emt 0:00:01] [#]} 32. Be4 {[%emt 0:00:08]} (32. Rc6 $1 $16 {[%cal Rc6c8]} Rxc6 33. Bxc6) 32... Nxc3 $11 {[%emt 0:00:01]} 33. Bxg6 {[%emt 0:00:03]} Ne2+ $1 {[%emt 0:00:31]} 34. Kh2 {[%emt 0:00:01]} (34. Kf2 $5 Nf4 $8 35. Ra7+ Kd6 36. Bf7 $11 (36. Ra6+ Ke5 $11)) 34... h4 $2 {[%emt 0:00:40]} (34... Nf4 $1 $11 35. Bb1 (35. Ra7+ Kd6 $17) 35... Rc3) 35. Be4 $2 {[%emt 0:01:01]} (35. Ra7+ $18 Kd6 36. Bh7) 35... Ng3 {[%emt 0:00:19]} (35... Nf4 $1 $11 {remains equal.}) 36. Bd3 {[%emt 0:00:23]} ({White should play} 36. Ra7+ Kd6 37. Bd3) 36... Rc3 {[%emt 0:00:47]} (36... Rc5 $142) 37. Bxb5 {[%emt 0:00:08]} Rc2+ {[%emt 0:00:07]} (37... Ne4 $16) 38. Kg1 $18 {[%emt 0:00:01]} Rc5 {[%emt 0:00:00]} (38... Ne4 $142) 39. Bc4 $18 {[%emt 0:00:04]} Rxg5 {[%emt 0:00:04]} 40. Rxe6+ {[%emt 0:00:02]} ({Don't do} 40. Bxe6 Ne4+ 41. Bg4 Nf6 $16) 40... Kd7 {[%emt 0:00:00]} 41. Kf2 {[%emt 0:00:28]} Nh1+ {[%emt 0:00:01]} 42. Kf1 {[%emt 0:00:09]} Ng3+ {[%emt 0:00:02]} 43. Ke1 {[%emt 0:00:01]} Rf5 {[%emt 0:00:10]} 44. Rh6 {[%emt 0:00:04]} Rf4 {[%emt 0:00:01]} 45. a4 {[%emt 0:00:07]} Ne4 {[%emt 0:00:04]} 46. a5 {[%emt 0:00:09]} Nd6 {[%emt 0:00:00]} 47. Be2 {[%emt 0:00:12]} Rb4 {[%emt 0:00:03]} (47... Kc7 $142 48. a6 Nc8) 48. a6 $18 {[%emt 0:00:01]} Rxb3 {[%emt 0:00:01]} 49. a7 {[%emt 0:00:14]} Ra3 {[%emt 0:00:03]} 50. Rh8 {[%emt 0:00:02]} ({Less strong is} 50. Rxh4 Kc7 $16) 50... Ra1+ {[%emt 0:00:03]} 51. Kf2 {[%emt 0:00:02]} 1-0